fUST/lending_fUST_20241012
["ID","MTS","AMOUNT","RATE_DAILY","PERIOD"]
[340156991,1728701439482,-400.0,0.00054376,2]
[340156992,1728701439491,-297482.15883537,0.000546,10]
[340156998,1728701441111,-839379.49274724,0.000546,10]
[340156999,1728701441126,-722.0,0.000546,10]
[340157007,1728701443564,-789.35,0.00054343,10]
[340157008,1728701443575,-4319.83359986,0.000546,10]
[340157011,1728701444866,155.69,0.000484,45]
[340157012,1728701444928,155.69,0.000484,45]
[340157013,1728701444980,155.69,0.000524,51]
[340157014,1728701445040,155.69,0.000524,51]
[340157015,1728701445094,155.69,0.000524,51]
[340157016,1728701445156,155.69,0.000524,51]
[340157023,1728701446791,-429.38418136,0.000546,10]
[340157024,1728701446862,-91.4799864,0.000546,10]
[340157025,1728701446909,-68.60268672,0.000546,10]
[340157026,1728701449995,223.4750902,0.0003635,2]
[340157031,1728702012727,1057.39033312,0.00036,2]
[340157032,1728702025628,1057.39033312,0.00035,2]
[340157033,1728702035500,1057.39033312,0.00036,120]
[340157034,1728702099053,150.393678,0.00036,2]
[340157037,1728702377960,606.0,0.00036,2]
[340157038,1728702413794,303.5,0.00036,2]
[340157039,1728702429399,-176.915332,0.000364,2]
[340157040,1728702429425,-157.547838,0.00036842,2]
[340157041,1728702429451,-157.547838,0.00036949,2]
[340157042,1728702429476,-157.547838,0.00037055,2]
[340157043,1728702429499,-21390.55417343,0.00037131,2]
[340157044,1728702440137,-937.84278395,0.00037131,2]
[340157045,1728702452119,-1412.75678004,0.00037131,2]
[340157049,1728702549151,-1158.84626258,0.00037131,2]
[340157050,1728702549175,-157.547838,0.00037162,2]
[340157051,1728702549198,-157.547838,0.00037269,2]
[340157052,1728702549220,-157.547838,0.00037375,2]
[340157053,1728702549242,-157.547838,0.00037482,2]
[340157054,1728702549263,-157.547838,0.00037589,2]
[340157055,1728702549285,-157.547838,0.00037695,2]
[340157056,1728702549308,-157.547838,0.00037802,2]
[340157057,1728702549330,-157.547838,0.00037909,2]
[340157058,1728702549353,-157.547838,0.00038015,2]
[340157059,1728702549374,-172.0,0.00038022,2]
[340157060,1728702549396,-9283.43109802,0.00038022,108]
[340157063,1728702556187,-7352.38896959,0.00038022,108]
[340157064,1728702556212,-157.547838,0.00038122,2]
[340157065,1728702556236,-157.547838,0.00038229,2]
[340157066,1728702556260,-157.547838,0.00038335,2]
[340157067,1728702556287,-157.547838,0.00038442,2]
[340157068,1728702556315,-157.547838,0.00038549,2]
[340157069,1728702556343,-157.547838,0.00038655,2]
[340157070,1728702556367,-157.547838,0.00038762,2]
[340157071,1728702556391,-1057.39033312,0.0004,2]
[340157072,1728702556416,-1057.39033312,0.0004,120]
[340157073,1728702556439,-1057.39033312,0.0004,30]
[340157074,1728702556464,-552.41712036,0.00041,2]
[340157075,1728702556487,-500.0,0.0004195,10]
[340157076,1728702556512,-168.52782215,0.00042803,30]
[340157077,1728702556537,-151.0,0.0004332,10]
[340157078,1728702556562,-171.428571,0.00044658,2]
[340157079,1728702556586,-340.0,0.00044658,2]
[340157080,1728702556609,-1057.39033312,0.00045,30]
[340157081,1728702556631,-1057.39033312,0.00045,2]
[340157082,1728702556655,-16635.82006761,0.00045742,120]
[340157083,1728702556677,-2299.99915572,0.000483,28]
[340157084,1728702556704,-155.46,0.000484,45]
[340157085,1728702560196,-340.0,0.00049517,2]
[340157086,1728702562099,-498.26766816,0.0005,2]
[340157087,1728702562123,-498.26766816,0.0005,120]
[340157088,1728702562150,-2299.99915569,0.00051336,28]
[340157089,1728702562171,-800.0,0.00052049,120]
[340157090,1728702562193,-1521.93944335,0.00052049,120]
[340157091,1728702562221,-155.46,0.000524,51]
[340157092,1728702562247,-155.46,0.000524,51]
[340157093,1728702562270,-6768.3555892,0.00052617,2]
[340157094,1728702562295,-6768.3555892,0.00052898,2]
[340157095,1728702562320,-150.11,0.0005307,30]
[340157096,1728702562341,-3305.40604,0.0005308,90]
[340157097,1728702562364,-6768.3555892,0.00053177,2]
[340157098,1728702562387,-211.43074711,0.00053249,2]
[340157099,1728702562409,-513.21720991,0.00053349,2]
[340157100,1728702562434,-500.0,0.0005346,120]
[340157101,1728702562457,-500.0,0.0005346,120]
[340157102,1728702562479,-291.7725469,0.0005346,120]
[340157103,1728702562501,-500.0,0.0005346,120]
[340157104,1728702562522,-344.49023399,0.0005346,120]
[340157105,1728702562545,-14302.00321823,0.00053461,120]
[340157106,1728702585017,1935.7684474,0.0002517,2]
[340157222,1728702639000,-929.83,0.00040956,43]
[340157223,1728702639011,-559.0,0.00053072,15]
[340157224,1728702639022,-32019.84674985,0.00053073,2]
[340157225,1728702639033,-6768.3555892,0.00053312,2]
[340157226,1728702639043,-2333.81684938,0.00053461,120]
[340157227,1728702639054,-6768.3555892,0.00053489,2]
[340157228,1728702639065,-22437.1277886,0.00053515,8]
[340157229,1728702639077,-22437.1277886,0.00053539,8]
[340157230,1728702639087,-800.0,0.00053549,120]
[340157231,1728702639100,-475.47,0.0005369,10]
[340157232,1728702639110,-6768.3555892,0.000537,2]
[340157233,1728702639120,-500.0,0.000538,10]
[340157234,1728702639130,-313.9340705,0.00053836,30]
[340157235,1728702639139,-153.0,0.00053939,120]
[340157236,1728702639149,-153.0,0.00053939,120]
[340157237,1728702639159,-153.0,0.00053939,120]
[340157238,1728702639169,-153.0,0.00053939,120]
[340157239,1728702639178,-153.0,0.00053939,120]
[340157240,1728702639189,-153.0,0.00053939,120]
[340157241,1728702639198,-153.0,0.00053939,120]
[340157242,1728702639208,-153.0,0.00053939,120]
[340157243,1728702639218,-154.436,0.0005394,101]
[340157244,1728702639228,-304.53,0.00053963,10]
[340157245,1728702639237,-210.0488919,0.00053973,30]
[340157246,1728702639247,-413.7492508,0.00053973,30]
[340157247,1728702639256,-413.7492508,0.00053973,30]
[340157248,1728702639265,-210.0488919,0.00053973,30]
[340157249,1728702639276,-413.7492508,0.00053973,30]
[340157250,1728702639286,-210.0488919,0.00053973,30]
[340157251,1728702639295,-413.7492508,0.00053973,30]
[340157252,1728702639304,-209.0512203,0.00053973,30]
[340157253,1728702639314,-210.0488919,0.00053973,30]
[340157254,1728702639324,-413.7492508,0.00053973,30]
[340157255,1728702639334,-210.0488919,0.00053973,30]
[340157256,1728702639344,-413.7492508,0.00053973,30]
[340157257,1728702639353,-210.0488919,0.00053973,30]
[340157258,1728702639363,-413.7492508,0.00053973,30]
[340157259,1728702639372,-413.7492508,0.00053973,30]
[340157260,1728702639382,-210.0488919,0.00053973,30]
[340157261,1728702639391,-406.415434,0.00053973,30]
[340157262,1728702639493,-210.0488919,0.00053973,30]
[340157263,1728702639502,-6768.3555892,0.00053986,2]
[340157264,1728702639512,-22516.1982835,0.000542,30]
[340157265,1728702639521,-150.0,0.00054241,2]
[340157266,1728702639530,-1008.35634105,0.00054263,120]
[340157267,1728702639540,-22437.1277886,0.00054341,8]
[340157268,1728702639549,-12904.26137404,0.00054351,2]
[340157269,1728702639559,-232.6088972,0.0005437,120]
[340157270,1728702639568,-190.26743005,0.0005437,120]
[340157271,1728702639577,-262.64430514,0.0005437,120]
[340157272,1728702639587,-2299.99915569,0.00054371,28]
[340157273,1728702639598,-340.0,0.00054376,2]
[340157274,1728702639608,-61629.80010904,0.000544,30]
[340157283,1728702640512,-2448.9014466,0.000544,30]
[340157327,1728702643871,-18.33931309,0.00053973,30]
[340157330,1728702646277,201.0,0.00051,120]
[340157332,1728702646616,-153.0,0.00053939,120]
[340157334,1728702646627,-215.60979801,0.00053973,30]
[340157335,1728702646638,-954.69691534,0.000544,30]
[340157336,1728702646826,305.0,0.00051,120]
[340157337,1728702647176,305.0,0.00051027,120]
[340157338,1728702647204,150.0,0.00051,120]
[340157339,1728702649321,163.0,0.00051,120]
[340157340,1728702649678,163.0,0.00051027,120]
[340157341,1728702649853,155.48,0.000488,45]
[340157342,1728702649923,155.48,0.000527,51]
[340157343,1728702649979,155.48,0.000527,51]
[340157344,1728702675899,9789.0,0.00036,2]
[340157345,1728702903125,4274.22116477,0.000252,2]
[340157393,1728703285556,929.83,0.00036,43]
[340157394,1728703496108,2684.93339926,0.00023091,2]
[340157395,1728703496138,1585.86849342,0.00023091,2]
[340157396,1728703549112,-558.28401396,0.00038341,2]
[340157398,1728703625120,-1066.26302553,0.00038341,2]
[340157399,1728703625144,-171.324181,0.00038351,2]
[340157400,1728703625169,-400.0,0.00038772,30]
[340157401,1728703625195,-400.0,0.00038772,5]
[340157402,1728703625220,-1597.23111179,0.00038773,2]
[340157403,1728703638099,-8344.80705401,0.00038773,2]
[340157404,1728703639187,-213.9590628,0.00038773,2]
[340157405,1728703641135,-220.99973699,0.00038773,2]
[340157406,1728703645105,-455.38667783,0.00038773,2]
[340157407,1728703721505,186.94955745,0.0003065,2]
[340157408,1728703747261,-150.0,0.00038772,30]
[340157409,1728703747287,-328.0,0.00038772,5]
[340157410,1728703747311,-14067.61635658,0.00038773,2]
[340157411,1728703747336,-11173.87286529,0.00039018,114]
[340157412,1728703747360,-555.3048272,0.00039118,2]
[340157413,1728703747387,-183.362582,0.00039717,2]
[340157414,1728703747411,-185.35221641,0.0004,2]
[340157415,1728703747437,-938.36386,0.0004,10]
[340157416,1728703747465,-183.362582,0.00040234,2]
[340157417,1728703747491,-183.362582,0.00040752,2]
[340157418,1728703747517,-183.362582,0.00041269,2]
[340157419,1728703747544,-183.362582,0.00041786,2]
[340157420,1728703747569,-400.0,0.00044658,2]
[340157421,1728703747592,-226.24030447,0.00044876,2]
[340157422,1728703747618,-154.436,0.00044877,72]
[340157423,1728703747641,-8486.96284641,0.00045,120]
[340157424,1728703747662,-26709.25878629,0.00045411,2]
[340157425,1728703747684,-2532.67283287,0.00045939,28]
[340157426,1728703747705,-11173.87286527,0.00046039,120]
[340157427,1728703747733,-156.32,0.000488,45]
[340157428,1728703747765,-2532.67283286,0.00049312,28]
[340157429,1728703752120,-211.4307471,0.00049417,2]
[340157430,1728703752146,-400.0,0.00049517,2]
[340157431,1728703752171,-5040.8,0.0005,120]
[340157432,1728703757294,-526.23,0.00052675,10]
[340157433,1728703757316,-2532.67283286,0.00052685,28]
[340157434,1728703757343,-156.32,0.000527,51]
[340157435,1728703757370,-156.32,0.000527,51]
[340157436,1728703757394,-170.51153247,0.000529,120]
[340157437,1728703758214,-229.0,0.00053,120]
[340157438,1728703758237,-150.0,0.00053,120]
[340157439,1728703758261,-11173.87286527,0.0005306,120]
[340157440,1728703758285,-438.52,0.00053157,10]
[340157441,1728703758309,-262.64430514,0.00053166,120]
[340157442,1728703758333,-332.72933146,0.00053166,120]
[340157443,1728703758357,-190.26743005,0.00053166,120]
[340157444,1728703758386,-37109.84910549,0.00053167,8]
[340157445,1728703784792,365.44,0.0005299,10]
[340157451,1728703795745,304.53,0.0005299,10]
[340157452,1728703806152,253.78,0.0005299,10]
[340157453,1728703817318,211.48,0.0005299,10]
[340157456,1728703827675,176.23,0.0005299,10]
[340157498,1728703839304,-4392.37328345,0.00040924,90]
[340157499,1728703839315,-172.91022026,0.00040924,120]
[340157500,1728703839325,-1000.98811153,0.00040924,60]
[340157501,1728703839337,-158.32518165,0.00040924,7]
[340157502,1728703839347,-57749.44380839,0.00040924,20]
[340157503,1728703839357,-165.86,0.00052999,7]
[340157504,1728703839368,-163.0,0.00053,120]
[340157505,1728703839379,-107219.57100642,0.00053,120]
[340157506,1728703839389,-39578.24700051,0.00053167,8]
[340157507,1728703839399,-6768.3555892,0.00053254,2]
[340157508,1728703839408,-6768.3555892,0.00053438,2]
[340157509,1728703839418,-800.0,0.00053549,120]
[340157510,1728703839431,-229.0,0.00053699,120]
[340157511,1728703839441,-616.05617209,0.000537,120]
[340157512,1728703839451,-13329.0572131,0.00053844,120]
[340157513,1728703839462,-1469.11390814,0.00053846,8]
[340157514,1728703839492,881.19,0.0005299,10]
[340157517,1728703840822,-126344.37960186,0.00053846,8]
[340157518,1728703840835,-40628.83491257,0.00053855,84]
[340157519,1728703840845,-51473.97214725,0.00053856,63]
[340157520,1728703840856,-220585.22411304,0.00053856,2]
[340157521,1728703840868,-6768.3555892,0.00053866,2]
[340157522,1728703840881,-45974.88,0.000539,30]
[340157523,1728703840891,-153.0,0.00053903,120]
[340157524,1728703840901,-153.0,0.00053903,120]
[340157525,1728703840911,-153.0,0.00053903,120]
[340157526,1728703840925,-153.0,0.00053903,120]
[340157527,1728703840935,-153.0,0.00053903,120]
[340157528,1728703840947,-153.0,0.00053903,120]
[340157529,1728703840959,-153.0,0.00053903,120]
[340157530,1728703840969,-209.4898726,0.00053973,30]
[340157531,1728703840980,-150.0,0.00053984,2]
[340157532,1728703840992,-6768.3555892,0.00054111,2]
[340157533,1728703841004,-656.12883256,0.0005419,2]
[340157534,1728703841014,-25562.698702,0.00054215,8]
[340157535,1728703841025,-5000.0,0.00054224,120]
[340157536,1728703841035,-3018.0021934,0.00054224,120]
[340157537,1728703841044,-91677.18028844,0.00054246,2]
[340157538,1728703841054,-151.0,0.0005429,120]
[340157539,1728703841063,-295.439144,0.0005429,120]
[340157540,1728703841074,-175.64602,0.0005429,120]
[340157541,1728703841084,-151.0,0.0005429,120]
[340157542,1728703841097,-155.291889,0.0005429,120]
[340157543,1728703841107,-151.0,0.0005429,120]
[340157544,1728703841119,-151.0,0.0005429,120]
[340157545,1728703841131,-151.449402,0.0005429,120]
[340157546,1728703841141,-88888.0,0.0005429,120]
[340157547,1728703841153,-500.0,0.00054297,10]
[340157548,1728703841163,-150.112233,0.000543,13]
[340157549,1728703841175,-241.183625,0.000543,12]
[340157550,1728703841187,-6816.4118402,0.0005436,23]
[340157551,1728703841197,-502.27822382,0.00054373,10]
[340157552,1728703841207,-400.0,0.00054376,2]
[340157553,1728703841220,-151.0,0.0005438,120]
[340157554,1728703841233,-219.996824,0.0005438,120]
[340157555,1728703841244,-152.833089,0.0005438,120]
[340157556,1728703841255,-219.996824,0.0005438,120]
[340157557,1728703841265,-754.082386,0.0005438,30]
[340157558,1728703841275,-151.0,0.0005438,120]
[340157559,1728703841286,-754.082386,0.0005438,30]
[340157560,1728703841299,-151.0,0.0005438,120]
[340157561,1728703841310,-1008.35634105,0.00054389,120]
[340157562,1728703841320,-100000.0,0.000544,30]
[340157563,1728703841330,-11048.83067805,0.000544,30]
[340157590,1728703843669,502.08225016,0.00041,5]
[340157600,1728703846967,-24.55552633,0.00053,120]
[340157603,1728703846979,-147.44447367,0.00053,120]
[340157605,1728703846989,-153.0,0.00053903,120]
[340157607,1728703846999,-151.0,0.0005429,30]
[340157609,1728703847008,-151.0,0.0005429,120]
[340157610,1728703847018,-23284.86340712,0.000544,30]
[340157611,1728703847030,-15666.30591483,0.000544,30]
[340157612,1728703847039,-469.06785824,0.000544,30]
[340157613,1728703847049,-150.112233,0.000544,11]
[340157614,1728703847058,-150.112233,0.000544,16]
[340157615,1728703847069,-156.924326,0.000544,120]
[340157616,1728703847079,-151.0,0.000544,120]
[340157617,1728703847088,-151.0,0.000544,120]
[340157618,1728703847098,-243.548438,0.000544,120]
[340157619,1728703847108,-151.0,0.000544,120]
[340157620,1728703847117,-151.0,0.000544,120]
[340157621,1728703847127,-268.29361,0.000544,120]
[340157622,1728703847137,-151.0,0.000544,120]
[340157623,1728703847147,-151.0,0.000544,120]
[340157624,1728703847156,-151.0,0.000544,60]
[340157625,1728703847166,-151.0,0.000544,120]
[340157626,1728703847176,-219.996824,0.000544,120]
[340157627,1728703847186,-219.996824,0.000544,120]
[340157628,1728703847196,-754.082386,0.000544,30]
[340157629,1728703847206,-151.0,0.000544,120]
[340157630,1728703847217,-754.082386,0.000544,30]
[340157631,1728703847230,-237.527438,0.000544,120]
[340157632,1728703847240,-158.395349,0.000545,14]
[340157633,1728703847251,-150.112233,0.000546,12]
[340157634,1728703847260,-154.09667065,0.00054766,2]
[340157635,1728703847270,-500.0,0.00054773,10]
[340157636,1728703847281,-6768.3555892,0.00054784,2]
[340157637,1728703847291,-504.05236714,0.00054794,120]
[340157638,1728703847300,-500.0,0.00054794,120]
[340157639,1728703847310,-510.06812074,0.00054794,120]
[340157640,1728703847320,-500.0,0.00054794,120]
[340157641,1728703847329,-520.99227676,0.00054794,120]
[340157642,1728703847339,-508.46972837,0.00054794,120]
[340157643,1728703847351,-501.16065807,0.00054794,2]
[340157644,1728703847362,-506.50161325,0.00054794,120]
[340157645,1728703847372,-518.46890574,0.00054794,120]
[340157646,1728703847382,-502.41301369,0.00054794,120]
[340157647,1728703847394,-500.0,0.00054794,120]
[340157648,1728703847404,-503.93868963,0.00054794,120]
[340157649,1728703847415,-500.0,0.00054794,120]
[340157650,1728703847426,-316.67933854,0.00054794,2]
[340157651,1728703847437,-171.34914331,0.00054794,120]
[340157652,1728703854774,156.34,0.000488,45]
[340157653,1728703854867,156.34,0.000527,51]
[340157654,1728703854943,156.34,0.000527,51]
[340157655,1728703954898,10000.0,0.00022,120]
[340157658,1728704424694,13227.18194913,0.00035,2]
[340157659,1728704475822,25000.0,0.00034,2]
[340157660,1728704526778,4450.81827702,0.00033,2]
[340157662,1728704757150,-342.76362809,0.00039,2]
[340157663,1728704757176,-400.0,0.00039372,30]
[340157664,1728704757202,-229.35446175,0.00039372,5]
[340157665,1728704825116,-176.915332,0.00039473,2]
[340157666,1728704825139,-188.161389,0.00040935,2]
[340157667,1728704825163,-188.161389,0.00041646,2]
[340157668,1728704825184,-3000.0,0.00041975,2]
[340157669,1728704825210,-160.0,0.00042022,30]
[340157670,1728704825232,-550.0,0.00042022,5]
[340157671,1728704825254,-188.161389,0.00042357,2]
[340157672,1728704825276,-188.161389,0.00043068,2]
[340157673,1728704825297,-172.0,0.00044128,2]
[340157674,1728704825319,-16067.28081189,0.00044128,2]
[340157675,1728704829151,-701.39247072,0.00044128,2]
[340157676,1728704834208,-2864.62354674,0.00044128,2]
[340157677,1728704843095,-1455.11964564,0.00044128,2]
[340157678,1728704845088,-3811.58352501,0.00044128,2]
[340157679,1728704845113,-2386.53143751,0.0004463,28]
[340157680,1728704845139,-171.428571,0.00044658,2]
[340157681,1728704845164,-340.0,0.00044658,2]
[340157682,1728704845186,-770.0,0.00044729,5]
[340157683,1728704845209,-529.597,0.00045,120]
[340157684,1728704845231,-625.0,0.00047611,5]
[340157685,1728704845253,-2386.53143748,0.00047669,28]
[340157686,1728704845277,-340.0,0.00049517,2]
[340157687,1728704845307,-2386.53143748,0.00050707,28]
[340157688,1728704845328,-163.86867861,0.0005189,2]
[340157689,1728704845356,-438.59,0.0005197,30]
[340157690,1728704845378,-500.0,0.00051973,10]
[340157691,1728704845401,-836.35,0.0005198,30]
[340157692,1728704845423,-696.96,0.0005198,30]
[340157693,1728704845447,-580.8,0.0005198,30]
[340157694,1728704845469,-484.0,0.0005198,30]
[340157695,1728704845492,-14012.29876371,0.0005198,10]
[340157696,1728704854121,-2021.95550402,0.00051978,120]
[340157698,1728704964120,-4595.85987546,0.0005189,120]
[340157699,1728704964143,-403.33,0.00051958,30]
[340157700,1728704964165,-336.11,0.00051958,30]
[340157701,1728704964187,-19775.47,0.00051958,10]
[340157702,1728704964208,-280.09,0.00051958,30]
[340157703,1728704964234,-76382.3629312,0.00051968,8]
[340157728,1728705031725,-163.8686786,0.0005188,2]
[340157729,1728705031736,-19722.8515113,0.00051968,8]
[340157730,1728705031747,-3251.58842586,0.00051968,8]
[340157731,1728705031820,-1143.93648854,0.00051968,8]
[340157749,1728705038180,-4284.38870644,0.00051968,8]
[340157750,1728705038190,-233.41,0.0005197,30]
[340157751,1728705038200,-194.51,0.0005197,30]
[340157752,1728705038211,-162.09,0.0005197,30]
[340157753,1728705038222,-810.48,0.0005197,30]
[340157754,1728705038233,-14890.09,0.0005198,10]
[340157755,1728705038243,-48052.6072213,0.0005198,8]
[340157756,1728705038257,-4339.95681042,0.0005198,8]
[340157757,1728705038268,-1008.35634105,0.00051989,120]
[340157758,1728705038277,-5000.0,0.00051989,120]
[340157759,1728705038292,-3018.0021934,0.00051989,120]
[340157760,1728705038301,-48052.6072213,0.0005199,8]
[340157761,1728705038311,-3544.72758361,0.0005199,8]
[340157766,1728705039904,-795.22922681,0.0005199,8]
[340157767,1728705039914,-183.8510136,0.00051999,120]
[340157768,1728705039924,-232.91053202,0.00051999,120]
[340157769,1728705039934,-64281.0,0.00052,120]
[340157770,1728705039943,-12904.26137404,0.00052074,2]
[340157771,1728705039953,-163.8686786,0.00052177,2]
[340157772,1728705039963,-656.12883256,0.00052396,2]
[340157773,1728705039973,-502.27822382,0.00052473,10]
[340157774,1728705039983,-500.0,0.00052473,10]
[340157775,1728705039992,-500.0,0.00052473,7]
[340157776,1728705040002,-163.8686786,0.00052473,2]
[340157777,1728705040011,-13329.0572141,0.00052475,120]
[340157778,1728705040020,-48052.6072213,0.00052476,8]
[340157779,1728705040030,-8679.91362084,0.00052476,8]
[340157780,1728705040039,-4339.95681042,0.0005249,8]
[340157781,1728705040049,-88888.0,0.000525,120]
[340157782,1728705040060,-150.112233,0.000525,10]
[340157783,1728705040071,-150.112236,0.000525,16]
[340157784,1728705040082,-504.23492492,0.00052573,10]
[340157785,1728705040092,-500.0,0.00052573,10]
[340157786,1728705040103,-500.0,0.00052573,10]
[340157787,1728705040115,-500.0,0.00052573,5]
[340157788,1728705040125,-159.152,0.00052578,96]
[340157789,1728705040136,-154.017889,0.00052579,120]
[340157790,1728705040145,-151.0,0.00052579,120]
[340157791,1728705040156,-151.0,0.00052579,120]
[340157792,1728705040168,-151.0,0.00052579,120]
[340157793,1728705040180,-159.424956,0.00052579,120]
[340157794,1728705040189,-151.0,0.00052579,120]
[340157795,1728705040199,-152.833089,0.00052579,120]
[340157796,1728705040208,-151.0,0.00052579,60]
[340157797,1728705040221,-678.674147,0.00052579,30]
[340157798,1728705040231,-678.674147,0.00052579,30]
[340157799,1728705040241,-4339.95681042,0.0005259,8]
[340157800,1728705040254,-207198.47697554,0.0005259,120]
[340157801,1728705040263,-8679.91362084,0.0005259,8]
[340157802,1728705040273,-53215.23281353,0.000526,63]
[340157803,1728705040282,-41196.59386767,0.000526,84]
[340157804,1728705040292,-275534.15161061,0.000526,120]
[340157805,1728705040304,-724465.84838939,0.000526,120]
[340157806,1728705040314,-1914.41,0.000526,30]
[340157807,1728705040325,-150.112233,0.000526,12]
[340157808,1728705040336,-150.112233,0.000526,15]
[340157809,1728705040348,-150.112233,0.000526,10]
[340157810,1728705040359,-150.112235,0.000526,16]
[340157811,1728705040372,-151.0,0.000526,120]
[340157812,1728705040383,-151.0,0.000526,120]
[340157813,1728705040394,-151.449402,0.000526,120]
[340157814,1728705040405,-151.0,0.000526,120]
[340157815,1728705040418,-151.0,0.000526,120]
[340157816,1728705040428,-197.997142,0.000526,120]
[340157817,1728705040439,-197.997142,0.000526,120]
[340157818,1728705040452,-155.291889,0.000526,120]
[340157819,1728705040463,-197.997142,0.000526,120]
[340157820,1728705040474,-197.997142,0.000526,120]
[340157821,1728705040484,-229.683291,0.000526,120]
[340157822,1728705040494,-151.0,0.000526,120]
[340157823,1728705040505,-151.0,0.000526,120]
[340157824,1728705040516,-151.0,0.000526,120]
[340157825,1728705040528,-151.0,0.000526,120]
[340157826,1728705040537,-151.0,0.000526,120]
[340157827,1728705040548,-172.875823,0.000526,120]
[340157828,1728705040559,-170.798124,0.000526,120]
[340157829,1728705040570,-151.0,0.000526,120]
[340157830,1728705040581,-151.0,0.000526,120]
[340157831,1728705040590,-151.0,0.000526,60]
[340157832,1728705040602,-678.674147,0.000526,30]
[340157833,1728705040612,-678.674147,0.000526,30]
[340157834,1728705040621,-151.0,0.000526,120]
[340157835,1728705040631,-175.64602,0.000526,120]
[340157836,1728705040643,-295.439144,0.000526,120]
[340157837,1728705040652,-512.31012474,0.00053,120]
[340157838,1728705040663,-151.0,0.00053,120]
[340157839,1728705040674,-238.0,0.00053,120]
[340157840,1728705040686,-163.0,0.00053,120]
[340157841,1728705040696,-151.0,0.00053076,3]
[340157842,1728705040706,-151.0,0.00053076,120]
[340157843,1728705040718,-151.0,0.00053076,120]
[340157844,1728705040727,-413.7492508,0.00053151,30]
[340157845,1728705040738,-210.0488919,0.00053151,30]
[340157846,1728705040749,-413.7492508,0.00053151,30]
[340157847,1728705040760,-210.0488919,0.00053151,30]
[340157848,1728705040769,-413.7492508,0.00053151,30]
[340157849,1728705040779,-210.0488919,0.00053151,30]
[340157850,1728705040789,-210.0488919,0.00053151,30]
[340157851,1728705040799,-413.7492508,0.00053151,30]
[340157852,1728705040808,-406.415434,0.00053151,30]
[340157853,1728705040818,-443.5269292,0.00053151,30]
[340157854,1728705040827,-413.7492508,0.00053151,30]
[340157855,1728705040837,-238.0,0.00053699,120]
[340157856,1728705040846,-313.9340705,0.00053836,30]
[340157857,1728705040856,-854.75601334,0.00053842,10]
[340157858,1728705040866,-1000.0,0.00053842,7]
[340157859,1728705040875,-153.0,0.00053843,120]
[340157860,1728705040885,-153.0,0.00053843,120]
[340157861,1728705040894,-153.0,0.00053843,120]
[340157862,1728705040903,-153.0,0.00053843,120]
[340157863,1728705040913,-153.0,0.00053843,120]
[340157864,1728705040923,-153.0,0.00053843,120]
[340157865,1728705040936,-153.0,0.00053843,120]
[340157866,1728705040947,-6565.45482836,0.00053896,120]
[340157867,1728705040959,-500.67170863,0.00053942,10]
[340157868,1728705040970,-500.0,0.00053942,5]
[340157869,1728705040981,-210.0488919,0.00053973,30]
[340157870,1728705040992,-210.0488919,0.00053973,30]
[340157871,1728705041002,-827.4985016,0.00053973,30]
[340157872,1728705041015,-419.9085494,0.00053973,30]
[340157873,1728705041026,-209.4898726,0.00053973,30]
[340157874,1728705041039,-800.0,0.00054,120]
[340157875,1728705041050,-79264.90828128,0.00054,120]
[340157876,1728705041061,-656.1288325,0.0005403,2]
[340157877,1728705041074,-1000.0,0.00054083,14]
[340157878,1728705041087,-1000.0,0.00054083,14]